bitfinex/quotes_BTCUSD_20250601
["timestamp","ask_amount","ask_price","bid_price","bid_amount"]
[1748818644046,0.94895523,105530.0,105520.0,0.03497762]
[1748818644733,0.94995523,105530.0,105520.0,0.04397762]
[1748818644957,0.63397316,105530.0,105520.0,0.04397762]
[1748818645192,0.94995523,105530.0,105520.0,0.02787762]
[1748818645435,1.39766645,105530.0,105520.0,0.00914558]
[1748818645677,2.23522282,105530.0,105520.0,0.01914558]
[1748818645894,6.77496577,105530.0,105520.0,0.01914558]
[1748818646346,6.77396577,105530.0,105520.0,0.00914558]
[1748818646572,6.86647699,105530.0,105520.0,0.00914558]
[1748818646791,0.85503515,105500.0,105490.0,0.03363278]
[1748818647016,0.85503515,105500.0,105490.0,0.04263729]
[1748818647241,0.95340868,105500.0,105490.0,0.04263729]
[1748818647467,0.63773839,105500.0,105490.0,0.04263735]
[1748818648143,0.6573303,105500.0,105490.0,0.05263735]
[1748818648377,0.6573303,105500.0,105490.0,0.0621023]
[1748818648590,0.6573303,105500.0,105490.0,0.05906949]
[1748818649026,0.6583303,105500.0,105490.0,0.05906949]
[1748818649238,0.6583303,105500.0,105490.0,0.050226]
[1748818650114,0.6583303,105500.0,105490.0,0.23981743]
[1748818650333,0.6583303,105500.0,105490.0,0.24929691]
[1748818654585,0.6583303,105500.0,105490.0,0.2587763]
[1748818655424,0.6583303,105500.0,105490.0,0.2682556]
[1748818655959,0.6583303,105500.0,105490.0,0.27773481]
[1748818659772,0.6583303,105500.0,105490.0,0.27773436]
[1748818660037,0.66780897,105500.0,105490.0,0.27773436]
[1748818660270,0.47823552,105500.0,105490.0,0.27773436]
[1748818660744,0.46875685,105500.0,105490.0,0.27773436]
[1748818660987,0.46875685,105500.0,105490.0,0.28657432]
[1748818660988,0.47823471,105500.0,105490.0,0.28657432]
[1748818661459,0.37971631,105500.0,105490.0,0.28657672]
[1748818661674,0.47815471,105500.0,105490.0,0.28657664]
[1748818661883,0.47815471,105500.0,105490.0,0.28657663]
[1748818662094,0.46867631,105500.0,105490.0,0.28657673]
[1748818662310,0.4781548,105500.0,105490.0,0.27773382]
[1748818662502,0.46867631,105500.0,105490.0,0.27773382]
[1748818662730,0.4781548,105500.0,105490.0,0.27773382]
[1748818662866,0.4781548,105500.0,105490.0,0.28657906]
[1748818663098,0.4781548,105500.0,105490.0,0.28657913]
[1748818663297,0.4781548,105500.0,105490.0,0.27773382]
[1748818663509,0.47815471,105500.0,105490.0,0.27773382]
[1748818664679,0.47815471,105500.0,105490.0,0.28658232]
[1748818664977,0.47815471,105500.0,105490.0,0.27773382]
[1748818665197,0.48763329,105500.0,105490.0,0.27773382]
[1748818666264,0.002,105500.0,105490.0,0.37358812]
[1748818666494,0.002,105500.0,105490.0,0.66654082]
[1748818666716,0.002,105500.0,105490.0,1.14270082]
[1748818666942,0.002,105500.0,105490.0,1.19080478]
[1748818669858,0.002,105500.0,105490.0,1.19080402]
[1748818670530,0.002,105500.0,105490.0,1.59080402]
[1748818671946,0.002,105500.0,105490.0,1.54392036]
[1748818672172,0.01654085,105500.0,105490.0,1.18718028]
[1748818672390,0.01654085,105500.0,105490.0,1.41135203]
[1748818673030,0.01654085,105500.0,105490.0,1.01135203]
[1748818673799,0.01654085,105500.0,105490.0,1.0113521]
[1748818674343,0.01654085,105500.0,105490.0,0.7214721]
[1748818674579,0.01654085,105500.0,105490.0,1.01135216]
[1748818677783,0.01654085,105500.0,105490.0,0.72147216]
[1748818678010,0.01654085,105500.0,105490.0,1.01131216]
[1748818678901,0.01654085,105500.0,105490.0,1.01009287]
[1748818680922,0.01654085,105500.0,105490.0,0.72025287]
[1748818681280,0.01654085,105500.0,105490.0,1.01005287]
[1748818681911,0.01654085,105500.0,105490.0,1.01005314]
[1748818686433,0.01654085,105500.0,105490.0,1.0100545]
[1748818688332,0.01654085,105500.0,105490.0,1.01490647]
[1748818689367,0.01654085,105500.0,105490.0,1.01127234]
[1748818689916,0.01654085,105500.0,105490.0,1.01490822]
[1748818690324,0.01654085,105500.0,105490.0,1.01127234]
[1748818690886,0.01654085,105500.0,105490.0,1.01127227]
[1748818695756,0.002,105500.0,105490.0,1.0064203]
[1748818695970,0.002,105500.0,105490.0,1.08882706]
[1748818696190,0.002,105500.0,105490.0,1.78142706]
[1748818699873,0.002,105500.0,105490.0,1.78142688]
[1748818700078,0.002,105500.0,105490.0,1.38142688]
[1748818704062,0.002,105500.0,105490.0,1.78142688]
[1748818704280,0.002,105500.0,105490.0,1.78142689]
[1748818705315,0.002,105500.0,105490.0,1.87030689]
[1748818710568,0.002,105500.0,105490.0,1.84185489]
[1748818713351,0.002,105500.0,105490.0,1.84185478]
[1748818713564,0.09244494,105530.0,105510.0,0.23213263]
[1748818713793,0.09244494,105530.0,105520.0,0.60947288]
[1748818714019,0.10698579,105530.0,105520.0,0.61135096]
[1748818714671,0.10698579,105530.0,105520.0,0.61499135]
[1748818715310,0.10798579,105530.0,105520.0,0.61499135]
[1748818715725,0.10698579,105530.0,105520.0,0.61699135]
[1748818715963,0.10698579,105530.0,105520.0,0.62199135]
[1748818716178,0.10798579,105530.0,105520.0,0.62199135]
[1748818717489,0.03174085,105530.0,105520.0,0.62199135]
[1748818718562,0.03174085,105530.0,105520.0,0.61713364]
[1748818722082,0.03174085,105530.0,105520.0,0.61349284]
[1748818722315,0.03174085,105530.0,105520.0,0.61713033]
[1748818723227,0.03062153,105530.0,105520.0,0.61713033]
[1748818725159,0.03062153,105530.0,105520.0,0.62198804]
[1748818725364,0.01554085,105530.0,105520.0,0.62198804]
[1748818725582,0.01554085,105530.0,105520.0,0.63283033]
[1748818725791,0.01554085,105530.0,105520.0,0.61713033]
[1748818725991,0.01554085,105530.0,105520.0,0.62198804]
[1748818726372,0.03084085,105530.0,105520.0,0.62198804]
[1748818726777,0.03084085,105530.0,105520.0,0.61713033]
[1748818729653,0.04031602,105530.0,105520.0,0.61701033]
[1748818729872,0.04584085,105530.0,105520.0,0.61701033]
[1748818730906,0.05531602,105530.0,105520.0,0.61701033]
[1748818731337,0.3713371,105530.0,105520.0,0.61701033]
[1748818731542,0.36186193,105530.0,105520.0,0.61701033]
[1748818731717,0.3713371,105530.0,105520.0,0.61701033]
[1748818731929,0.36186193,105530.0,105520.0,0.61701033]
[1748818732259,0.3713371,105530.0,105520.0,0.61701033]
[1748818732460,0.36186193,105530.0,105520.0,0.61701033]
[1748818733925,0.36186193,105530.0,105520.0,0.6170111]
[1748818734763,0.36186193,105530.0,105520.0,0.62186881]
[1748818736000,0.34686193,105530.0,105520.0,0.62186881]
[1748818736196,0.04714085,105530.0,105520.0,0.62186881]
[1748818736436,0.36316193,105530.0,105520.0,0.62186881]
[1748818737557,0.03084085,105530.0,105520.0,0.62186881]
[1748818739583,0.03084085,105530.0,105520.0,0.61823055]
[1748818740368,0.03084085,105530.0,105520.0,0.61823054]
[1748818740586,0.03084085,105530.0,105520.0,0.61819054]
[1748818747733,0.03084085,105530.0,105520.0,0.61819053]
[1748818747938,0.03084085,105530.0,105520.0,0.61815053]
[1748818756195,0.01554085,105530.0,105520.0,0.61815053]
[1748818756396,0.01554085,105530.0,105520.0,0.65055053]
[1748818756579,0.01554085,105530.0,105520.0,0.64569282]
[1748818756812,0.01554085,105530.0,105520.0,0.65055502]
[1748818757235,0.01554085,105530.0,105520.0,0.63435502]
[1748818757461,0.03144085,105530.0,105520.0,0.61815502]
[1748818761211,0.03144085,105530.0,105520.0,0.61815501]
[1748818769078,0.03144085,105530.0,105520.0,0.61026135]
[1748818769286,0.03144085,105530.0,105520.0,0.61815506]
[1748818775286,0.01554085,105530.0,105520.0,0.61815506]
[1748818775952,0.01554085,105530.0,105520.0,0.63395506]
[1748818776181,0.01554085,105530.0,105520.0,0.62909281]
[1748818779123,0.01554085,105530.0,105520.0,0.61329281]
[1748818779342,0.01554085,105530.0,105520.0,0.61329273]
[1748818780241,0.03184085,105530.0,105520.0,0.61329273]
[1748818780673,0.03184085,105530.0,105520.0,0.61815438]
[1748818783881,0.03184085,105530.0,105520.0,0.61815444]
[1748818788335,0.03184085,105530.0,105520.0,0.615123]
[1748818788554,0.03184085,105530.0,105520.0,0.61815444]
[1748818797498,0.03184085,105530.0,105520.0,0.61810438]
[1748818797748,0.03184085,105530.0,105520.0,0.61790671]
[1748818797997,0.03184085,105530.0,105520.0,0.61780625]
[1748818798266,0.03184085,105530.0,105520.0,0.61755881]
[1748818800580,0.36294381,105530.0,105520.0,0.32811881]
[1748818801016,0.37241907,105530.0,105520.0,0.61731894]
[1748818801874,0.36294381,105530.0,105520.0,0.61731894]
[1748818802005,0.37241898,105530.0,105520.0,0.61731894]
[1748818804022,0.36294381,105530.0,105520.0,0.61731894]
[1748818804522,0.37241907,105530.0,105520.0,0.61731894]
[1748818804731,0.36294381,105530.0,105520.0,0.61731894]
[1748818806531,0.36294381,105530.0,105520.0,0.32811894]
[1748818806748,0.36294381,105530.0,105520.0,0.61727894]
[1748818811502,0.36294381,105530.0,105520.0,0.32811894]
[1748818811726,0.36294381,105530.0,105520.0,0.61727894]
[1748818813023,0.40084608,105530.0,105520.0,0.33273416]
[1748818813148,0.40084608,105530.0,105520.0,0.62185416]
[1748818813576,0.59036564,105530.0,105520.0,0.61237799]
[1748818813802,0.59036564,105530.0,105520.0,0.63133092]
[1748818814429,0.39137011,105530.0,105520.0,0.63133038]
[1748818814629,0.4008459,105530.0,105520.0,0.63133038]
[1748818815474,0.4008459,105530.0,105520.0,0.62185414]
[1748818815699,0.4008459,105530.0,105520.0,0.63133002]
[1748818815921,0.39137011,105530.0,105520.0,0.63133002]
[1748818817871,0.38189441,105530.0,105520.0,0.62829829]
[1748818818137,0.39136993,105530.0,105520.0,0.63133003]
[1748818818489,0.40084563,105530.0,105520.0,0.63133003]
[1748818819251,0.40084554,105530.0,105520.0,0.63133003]
[1748818819683,0.03184085,105530.0,105520.0,0.63133003]
[1748818819954,0.01554085,105530.0,105520.0,0.65269168]
[1748818822509,0.01554085,105530.0,105520.0,0.65269146]
[1748818824312,0.01554085,105530.0,105520.0,0.66879146]
[1748818826289,0.01554085,105530.0,105520.0,0.72347655]
[1748818826963,0.01554085,105530.0,105520.0,0.72347644]
[1748818827878,0.01554085,105530.0,105520.0,0.70737644]
[1748818830494,0.01554085,105530.0,105520.0,0.65269135]
[1748818831358,0.01554085,105530.0,105520.0,0.64965994]
[1748818831545,0.01554085,105530.0,105520.0,0.65269137]
[1748818832007,0.01554085,105530.0,105520.0,0.72377646]
[1748818834588,0.01554085,105530.0,105520.0,0.66909137]
[1748818835794,0.01554085,105530.0,105520.0,0.66605994]
[1748818836031,0.01554085,105530.0,105520.0,0.66909124]
[1748818840222,0.01554085,105530.0,105520.0,0.66605994]
[1748818840445,0.01554085,105530.0,105520.0,0.66909123]
[1748818840949,0.001,105530.0,105520.0,1.09266958]
[1748818841225,0.0161,105560.0,105550.0,0.21790511]
[1748818841438,0.4964879,105570.0,105560.0,0.21788446]
[1748818841646,0.11761652,105570.0,105560.0,0.31677005]
[1748818841861,0.43361948,105570.0,105560.0,0.31677005]
[1748818842277,0.10814494,105570.0,105560.0,0.31677005]
[1748818842497,0.01658553,105570.0,105560.0,0.31677005]
[1748818842929,0.33258849,105570.0,105560.0,0.31677005]
[1748818843145,0.35112934,105570.0,105560.0,0.31777005]
[1748818843365,0.03512638,105570.0,105560.0,0.31777005]
[1748818844213,0.03912638,105570.0,105560.0,0.31777005]
[1748818844424,0.03912638,105570.0,105560.0,0.31776923]
[1748818845126,0.35489887,105570.0,105560.0,0.31776923]
[1748818845343,0.37059887,105570.0,105560.0,0.31776923]
[1748818847538,0.58846268,105570.0,105560.0,0.29882366]
[1748818847750,0.58846268,105570.0,105560.0,0.60672977]
[1748818847966,0.90423517,105570.0,105560.0,0.60672977]
[1748818848199,0.57899093,105570.0,105560.0,0.30829676]
[1748818848436,0.56951891,105570.0,105560.0,0.59725676]
[1748818848652,0.87581911,105570.0,105560.0,0.39831827]
[1748818848865,0.56004662,105570.0,105560.0,0.40779146]
[1748818849080,0.56004662,105570.0,105560.0,0.60369957]
[1748818849294,0.56004662,105570.0,105560.0,0.61620334]
[1748818850144,0.25374642,105570.0,105560.0,0.00403076]
[1748818850350,0.56951891,105570.0,105560.0,0.28992]
[1748818850565,0.56951891,105570.0,105560.0,0.29295076]
[1748818851606,0.57877904,105570.0,105560.0,0.29295076]
[1748818851823,0.89455153,105570.0,105560.0,0.28992]
[1748818852034,0.89455153,105570.0,105560.0,0.001]
[1748818852035,0.98299153,105570.0,105560.0,0.001]
[1748818854174,1.61191153,105570.0,105560.0,0.001]
[1748818854632,6.26976183,105570.0,105560.0,0.001]
[1748818855725,0.25409199,105540.0,105530.0,0.29839597]
[1748818855953,0.56986448,105540.0,105530.0,0.39728181]
[1748818856203,0.56986448,105540.0,105530.0,0.38780584]
[1748818857406,0.56986448,105540.0,105530.0,0.29195154]
[1748818857622,0.57086448,105540.0,105530.0,0.005]
[1748818858474,0.57186448,105540.0,105530.0,0.01]
[1748818858895,0.57086448,105540.0,105530.0,0.005]
[1748818859248,0.57186448,105540.0,105530.0,0.29392]
[1748818859640,0.57086448,105540.0,105530.0,0.28892]
[1748818859840,0.57086448,105540.0,105530.0,0.29839597]
[1748818860062,0.57186448,105540.0,105530.0,0.30787185]
[1748818860226,0.57186448,105540.0,105530.0,0.50686702]
[1748818860417,0.57186448,105540.0,105530.0,0.5068672]
[1748818860826,0.56238985,105540.0,105530.0,0.48791553]
[1748818861251,0.56238985,105540.0,105530.0,0.49739141]
[1748818861899,0.55291495,105540.0,105530.0,0.49739141]
[1748818862159,0.55291495,105540.0,105530.0,0.5068672]
[1748818863438,0.55291495,105540.0,105530.0,0.49739141]
[1748818863649,0.55291495,105540.0,105520.0,0.18953661]
[1748818863650,0.25391208,105530.0,105520.0,0.18953661]
[1748818863857,0.57916009,105530.0,105520.0,0.60577259]
[1748818864063,0.57916009,105530.0,105520.0,0.61524892]
[1748818864683,0.57916009,105530.0,105520.0,0.60577259]
[1748818864890,0.57916009,105530.0,105520.0,0.60577263]
[1748818865088,0.58016009,105530.0,105520.0,0.60591906]
[1748818865679,0.58016009,105530.0,105520.0,0.59644264]
[1748818865883,0.58016009,105530.0,105520.0,0.58696604]
[1748818866103,0.58016009,105530.0,105520.0,0.60244264]
[1748818866304,0.58116009,105530.0,105520.0,0.60244264]
[1748818866505,0.57168457,105530.0,105520.0,0.60244264]
[1748818866707,0.38216501,105530.0,105520.0,0.61191897]
[1748818866915,0.38216447,105530.0,105520.0,0.62139521]
[1748818867128,0.39164026,105530.0,105520.0,0.62139521]
[1748818867336,0.40111614,105530.0,105520.0,0.62139521]
[1748818867547,0.40111614,105530.0,105520.0,0.61836338]
[1748818869637,0.39164026,105530.0,105520.0,0.61836338]
[1748818870605,0.39164026,105530.0,105520.0,0.60888714]
[1748818870810,0.56220869,105530.0,105520.0,0.00614643]
[1748818871026,0.56220869,105530.0,105520.0,0.20516082]
[1748818871237,0.80988906,105530.0,105520.0,0.00614643]
[1748818871439,1.12566155,105530.0,105520.0,0.00614643]
[1748818871639,0.71737784,105530.0,105520.0,0.00614643]
[1748818871857,0.01895797,105490.0,105480.0,0.20467574]
[1748818872032,0.01895797,105490.0,105480.0,0.59634353]
[1748818872033,0.56494195,105490.0,105480.0,0.59634353]
[1748818872265,0.38483054,105490.0,105480.0,0.30704066]
[1748818872467,0.38483036,105490.0,105480.0,0.61252084]
[1748818872669,0.38483036,105490.0,105480.0,0.62137583]
[1748818872848,0.38483036,105490.0,105480.0,0.62137584]
[1748818873053,0.37535061,105490.0,105480.0,0.61252084]
[1748818873274,0.01454085,105490.0,105480.0,0.65520851]
[1748818873420,0.01554085,105490.0,105480.0,0.65235371]
[1748818873628,0.01554085,105490.0,105480.0,0.6612081]
[1748818873828,0.01554085,105490.0,105480.0,0.66120806]
[1748818874039,0.01654085,105490.0,105480.0,0.65235364]
[1748818874685,0.01654085,105490.0,105480.0,0.68792874]
[1748818878870,0.01654085,105490.0,105480.0,0.74792874]
[1748818879502,0.01654085,105490.0,105480.0,1.08792874]
[1748818882443,0.01654085,105490.0,105480.0,1.48792874]
[1748818885034,0.01654085,105490.0,105480.0,1.45243364]
[1748818885487,0.01654085,105490.0,105480.0,1.45243317]
[1748818885927,0.01654085,105490.0,105480.0,1.14793317]
[1748818886194,0.01654085,105490.0,105480.0,1.02159317]
[1748818886868,0.01654085,105490.0,105480.0,1.02159335]
[1748818887933,0.01654085,105490.0,105480.0,1.05289335]
[1748818889029,0.01654085,105490.0,105480.0,1.08846845]
[1748818889030,0.002,105490.0,105480.0,1.08846845]
[1748818890163,0.002,105490.0,105480.0,1.48846845]
[1748818892868,0.002,105490.0,105480.0,1.49846845]
[1748818893088,0.002,105490.0,105480.0,1.82508357]
[1748818893737,0.09078579,105510.0,105500.0,0.58860838]
[1748818893738,0.01454085,105510.0,105500.0,0.58860838]
[1748818893982,0.09194494,105530.0,105520.0,0.21796705]
[1748818894184,0.09194494,105530.0,105520.0,0.60601386]
[1748818894435,0.07624494,105530.0,105520.0,1.01218896]
[1748818894653,0.07624494,105530.0,105520.0,0.97661386]
[1748818895097,0.03024085,105540.0,105530.0,0.21794639]
[1748818895313,0.0314,105550.0,105540.0,0.21792577]
[1748818895533,0.0157,105550.0,105540.0,0.60657133]
[1748818896202,0.03024085,105550.0,105540.0,0.60657125]
[1748818896412,0.03024085,105550.0,105540.0,0.60757125]
[1748818896633,0.04024085,105550.0,105540.0,0.60757125]
[1748818897480,0.04024085,105550.0,105540.0,0.61337552]
[1748818898596,0.05024085,105550.0,105540.0,0.61437552]
[1748818899718,0.05024085,105550.0,105540.0,0.61134434]
[1748818899937,0.05024085,105550.0,105540.0,0.61437552]
[1748818902441,0.05971422,105550.0,105540.0,0.61421552]
[1748818902908,0.36601334,105550.0,105540.0,0.61421552]
[1748818903118,0.3906868,105550.0,105540.0,0.61421552]
[1748818904189,0.3906868,105550.0,105540.0,0.61118434]
[1748818904437,0.3906868,105550.0,105540.0,0.61421552]
[1748818904783,0.40016053,105550.0,105540.0,0.32461552]
[1748818905001,0.3906868,105550.0,105540.0,0.61413552]
[1748818905239,0.40016044,105550.0,105540.0,0.61413552]
[1748818905451,0.3906868,105550.0,105540.0,0.61413552]
[1748818906321,0.40016044,105550.0,105540.0,0.61413552]
[1748818907642,0.3906868,105550.0,105540.0,0.61413552]
[1748818907828,0.40016035,105550.0,105540.0,0.61413552]
[1748818908026,0.39068671,105550.0,105540.0,0.61413552]
[1748818908475,0.40016026,105550.0,105540.0,0.61413552]
[1748818908888,0.39068671,105550.0,105540.0,0.61413552]
[1748818909315,0.05971422,105550.0,105540.0,0.61413552]
[1748818910565,0.05024085,105550.0,105540.0,0.61413552]
[1748818910986,0.05971431,105550.0,105540.0,0.61413552]
[1748818911208,0.05024085,105550.0,105540.0,0.61413552]
[1748818911446,0.05971422,105550.0,105540.0,0.61413552]
[1748818912467,0.05971422,105550.0,105540.0,0.61413546]
[1748818912952,0.06918777,105550.0,105540.0,0.61413546]
[1748818913198,0.39048671,105550.0,105540.0,0.61413546]
[1748818913428,0.39996026,105550.0,105540.0,0.61413546]
[1748818913644,0.39996017,105550.0,105540.0,0.61413546]
[1748818914066,0.39048671,105550.0,105540.0,0.61413546]
[1748818915562,0.39996017,105550.0,105540.0,0.61413546]
[1748818916664,0.08418768,105550.0,105540.0,0.61413546]
[1748818918423,0.07471422,105550.0,105540.0,0.61413546]
[1748818918845,0.07471422,105550.0,105540.0,0.67413546]
[1748818919346,0.05971422,105550.0,105540.0,0.67413546]
[1748818919615,0.05024085,105550.0,105540.0,0.67413546]
[1748818919805,0.03454085,105550.0,105540.0,1.02933546]
[1748818920007,0.03454085,105550.0,105540.0,1.04483546]
[1748818920207,0.02,105550.0,105540.0,1.04483546]
[1748818920382,0.02,105550.0,105540.0,1.08041056]
[1748818920592,0.02,105550.0,105540.0,1.16877056]
[1748818920803,0.0155,105570.0,105560.0,0.21788446]
[1748818920989,0.03004085,105570.0,105560.0,0.60616988]
[1748818921191,0.03004085,105570.0,105560.0,0.60616928]
[1748818921592,0.0395126,105570.0,105560.0,0.60616928]
[1748818921791,0.38055702,105570.0,105560.0,0.60616928]
[1748818921997,0.07178453,105570.0,105560.0,0.60741928]
[1748818922193,0.38755702,105570.0,105560.0,0.60741928]
[1748818922999,0.38751702,105570.0,105560.0,0.60741928]
[1748818923478,0.38804509,105570.0,105560.0,0.60841928]
[1748818923662,0.39751702,105570.0,105560.0,0.60841928]
[1748818924245,0.38804509,105570.0,105560.0,0.60841928]
[1748818924905,0.39751702,105570.0,105560.0,0.60841928]
[1748818925476,0.39757615,105570.0,105560.0,0.60841928]
[1748818926871,0.37863247,105570.0,105560.0,0.60841928]
[1748818927097,0.05647243,105570.0,105560.0,0.60841928]
[1748818927311,0.03154085,105570.0,105560.0,0.60841928]
[1748818928170,0.03154085,105570.0,105560.0,0.62441928]
[1748818929466,0.03154085,105570.0,105560.0,0.6244193]
[1748818930118,0.03154085,105570.0,105560.0,0.6084193]
[1748818930536,0.04101252,105570.0,105560.0,0.6086593]
[1748818930745,0.05741252,105570.0,105560.0,0.6086593]
[1748818930955,0.04794085,105570.0,105560.0,0.6086593]
[1748818931211,0.05741243,105570.0,105560.0,0.6086593]
[1748818932034,0.04101243,105570.0,105560.0,0.6086593]
[1748818932216,0.03154085,105570.0,105560.0,0.6237593]
[1748818933771,0.03154085,105570.0,105560.0,0.62375923]
[1748818934695,0.03154085,105570.0,105560.0,0.60865923]
[1748818934917,0.04101243,105570.0,105560.0,0.60865923]
[1748818935128,0.03154085,105570.0,105560.0,0.60865923]
[1748818935566,0.04794085,105570.0,105560.0,0.60865923]
[1748818937416,0.03154085,105570.0,105560.0,0.60865923]
[1748818938315,0.03154085,105570.0,105560.0,0.60865922]
[1748818938801,0.04764085,105570.0,105560.0,0.60837922]
[1748818939002,0.37294405,105570.0,105560.0,0.60837922]
[1748818939850,0.36347247,105570.0,105560.0,0.60837922]
[1748818940271,0.04764085,105570.0,105560.0,0.60837922]
[1748818940478,0.36347247,105570.0,105560.0,0.60837922]
[1748818940694,0.04764085,105570.0,105560.0,0.60837922]
[1748818941305,0.03154085,105570.0,105560.0,0.62397922]
[1748818941917,0.03154085,105570.0,105560.0,0.60837922]
[1748818942968,0.04654085,105570.0,105560.0,0.60837922]
[1748818944705,0.03154085,105570.0,105560.0,0.60837922]
[1748818945569,0.04101243,105570.0,105560.0,0.60837922]
[1748818945770,0.03154085,105570.0,105560.0,0.60837922]
[1748818948198,0.03154085,105570.0,105560.0,0.62367922]
[1748818948703,0.017,105570.0,105560.0,0.96367922]
[1748818948967,0.017,105570.0,105560.0,0.97969922]
[1748818949202,0.03154085,105570.0,105560.0,0.97969922]
[1748818949645,0.02454085,105570.0,105560.0,0.97869922]
[1748818949850,0.01454085,105570.0,105560.0,1.04269922]
[1748818950081,0.01654085,105570.0,105560.0,1.04569922]
[1748818951371,0.01654085,105570.0,105560.0,1.13437922]
[1748818951987,0.01654085,105570.0,105560.0,1.53437922]
[1748818954142,0.01654085,105570.0,105560.0,1.13437922]
[1748818954729,0.01654085,105570.0,105560.0,1.53437922]
[1748818960678,0.01654085,105570.0,105560.0,1.53437883]
[1748818970525,0.01654085,105570.0,105560.0,1.51827883]
[1748818970740,0.01654085,105570.0,105560.0,1.51807883]
[1748818972388,0.01654085,105570.0,105560.0,1.50273883]
[1748818973654,0.01654085,105570.0,105560.0,1.51863883]
[1748818980518,0.002,105570.0,105560.0,1.51863883]
[1748818980744,0.016,105590.0,105580.0,0.2178432]
[1748818980949,0.016,105590.0,105580.0,0.60588757]
[1748818981164,0.03054085,105590.0,105580.0,0.60588757]
[1748818981654,0.03054085,105590.0,105580.0,0.60588712]
[1748818982304,0.03054085,105590.0,105580.0,0.60688712]
[1748818982738,0.03054085,105590.0,105580.0,0.61188712]
[1748818982739,0.03154085,105590.0,105580.0,0.61188712]
[1748818985403,0.017,105590.0,105580.0,1.04064712]
[1748818985616,0.001,105590.0,105580.0,1.05614712]
[1748818985859,0.001,105590.0,105580.0,1.04064707]
[1748818986098,0.017,105590.0,105580.0,1.04064707]
[1748818986793,0.017,105590.0,105580.0,0.75148707]
[1748818986995,0.017,105590.0,105580.0,1.04084707]
[1748818988126,0.001,105590.0,105580.0,1.05041701]
[1748818990354,0.0168,105590.0,105580.0,1.05041701]
[1748818990760,0.0168,105590.0,105580.0,1.04084707]
[1748818990971,0.001,105590.0,105580.0,1.05704707]
[1748818992314,0.04224085,105600.0,105590.0,0.21782256]
[1748818992513,0.04224085,105600.0,105590.0,0.31670643]
[1748818993812,0.0158,105600.0,105590.0,0.65670643]
[1748818994038,0.05079255,105620.0,105610.0,0.21778132]
[1748818994298,0.05079255,105620.0,105610.0,0.60642519]
[1748818994299,0.01454085,105620.0,105610.0,0.60642519]
[1748818994512,0.01893159,105640.0,105630.0,0.21774007]
[1748818994755,0.01893159,105640.0,105630.0,0.60650345]
[1748818994756,0.31583162,105640.0,105630.0,0.60650345]
[1748818995006,0.1141038,105650.0,105640.0,0.20825399]
[1748818995232,0.44613614,105650.0,105640.0,0.2112829]
[1748818995453,0.66059867,105650.0,105640.0,0.21128254]
[1748818995675,0.33530238,105650.0,105640.0,0.21128254]
[1748818995975,0.67038996,105650.0,105640.0,0.21128254]
[1748818996206,0.47129491,105650.0,105640.0,0.31660241]
[1748818996435,0.04135823,105650.0,105640.0,0.32303934]
[1748818996647,0.03178622,105650.0,105640.0,0.3260678]
[1748818997083,0.04125071,105650.0,105640.0,0.3260678]
[1748818997308,0.05579156,105650.0,105640.0,0.3260678]
[1748818997543,0.05125071,105650.0,105640.0,0.3270678]
[1748818997781,0.06425071,105650.0,105640.0,0.3280678]
[1748818997999,0.04125071,105650.0,105640.0,0.3260678]
[1748818998217,0.06779156,105650.0,105640.0,0.3270678]
[1748818998454,0.08625623,105650.0,105640.0,0.3280678]
[1748818998689,0.08616891,105650.0,105640.0,0.3280675]
[1748818998938,0.41146529,105650.0,105640.0,0.3280675]
[1748818999418,0.59130546,105650.0,105640.0,0.0978543]
[1748818999641,0.6675504,105650.0,105640.0,0.002]
[1748819001791,1.0075504,105650.0,105640.0,0.002]
[1748819004763,0.93130546,105650.0,105640.0,0.002]
[1748819007602,5.9016443,105650.0,105640.0,0.002]
[1748819007809,5.9016443,105650.0,105590.0,0.21138133]
[1748819007810,0.04051045,105600.0,105590.0,0.21138133]
[1748819008020,0.37528055,105600.0,105590.0,0.95649582]
[1748819008230,0.38475015,105600.0,105590.0,0.95649591]
[1748819008442,0.39421984,105600.0,105590.0,0.95649591]
[1748819008683,0.07838822,105600.0,105590.0,0.72617591]
[1748819008895,0.05944893,105600.0,105590.0,1.02600587]
[1748819009097,0.05097942,105600.0,105590.0,1.03400587]
[1748819009319,0.05146504,105600.0,105590.0,1.03400587]
[1748819009547,0.01602647,105600.0,105590.0,1.11975309]
[1748819010203,0.01502647,105600.0,105590.0,1.11371309]
[1748819010416,0.01602647,105600.0,105590.0,1.11371309]
[1748819010624,0.01702647,105600.0,105590.0,1.11971309]
[1748819011456,0.01902647,105600.0,105590.0,1.11971309]
[1748819011677,0.01902647,105600.0,105590.0,1.11971339]
[1748819012526,0.01902647,105600.0,105590.0,1.04990617]
[1748819012742,0.05690361,105600.0,105590.0,0.3941763]
[1748819012963,0.37886554,105600.0,105590.0,0.69380626]
[1748819013168,0.38833523,105600.0,105590.0,0.3941763]
[1748819013384,0.40333523,105600.0,105590.0,0.69376626]
[1748819013828,0.39386554,105600.0,105590.0,0.69376626]
[1748819014054,0.40333514,105600.0,105590.0,0.69376626]
[1748819014318,0.58326073,105600.0,105590.0,0.16688365]
[1748819014548,0.97830293,105600.0,105590.0,0.068]
[1748819014782,0.97830293,105600.0,105590.0,0.008]
[1748819015736,0.38439702,105600.0,105590.0,0.3122069]
[1748819015962,0.47307702,105600.0,105590.0,0.3122069]
[1748819016194,0.48254671,105600.0,105590.0,0.32167704]
[1748819016652,0.48254671,105600.0,105590.0,0.3122069]
[1748819016876,0.4585963,105600.0,105590.0,0.32167686]
[1748819017108,0.03462647,105600.0,105590.0,0.32167686]
[1748819017345,0.01902647,105600.0,105590.0,0.32167686]
[1748819017578,0.00448562,105600.0,105590.0,0.75700655]
[1748819018035,0.01902647,105600.0,105590.0,0.75700655]
[1748819018709,0.01902647,105600.0,105590.0,0.74070655]
[1748819020358,0.01902647,105600.0,105590.0,0.74070625]
[1748819026210,0.01902647,105600.0,105590.0,1.01478625]
[1748819028225,0.01902647,105600.0,105590.0,0.72470625]
[1748819028436,0.35045809,105600.0,105590.0,0.67474625]
[1748819028876,0.35992706,105600.0,105590.0,0.67474625]
[1748819029087,0.36655809,105600.0,105590.0,0.67474625]
[1748819029309,0.36655809,105600.0,105590.0,0.67474648]
[1748819030287,0.37602697,105600.0,105590.0,0.67474648]
[1748819031802,0.38549594,105600.0,105590.0,0.67474648]
[1748819033255,0.37602697,105600.0,105590.0,0.67474648]
[1748819033534,0.35045809,105600.0,105590.0,0.67474648]
[1748819033668,0.35045809,105600.0,105590.0,0.67171686]
[1748819033896,0.35045809,105600.0,105590.0,0.67474648]
[1748819035146,0.04409544,105600.0,105590.0,0.67474648]
[1748819035405,0.03462647,105600.0,105590.0,0.67474648]
[1748819036216,0.04409535,105600.0,105590.0,0.67474648]
[1748819037833,0.04409535,105600.0,105590.0,0.67434648]
[1748819039223,0.04409535,105600.0,105590.0,0.38470648]
[1748819039439,0.05356432,105600.0,105590.0,0.67426648]
[1748819040498,0.04409535,105600.0,105590.0,0.67426648]